fUST/lending_fUST_20241012
["ID","MTS","AMOUNT","RATE_DAILY","PERIOD"]
[340162115,1728721841008,-171.28015289,0.0005489,2]
[340162116,1728721841017,-1000.0,0.0005489,120]
[340162117,1728721841026,-171.28015287,0.00054893,2]
[340162118,1728721841035,-171.28015287,0.00054897,2]
[340162119,1728721841044,-171.28015287,0.000549,2]
[340162120,1728721841054,-5922.88986427,0.00054903,120]
[340162121,1728721841063,-151.0,0.0005498,30]
[340162122,1728721841072,-194507.72572,0.0005498,8]
[340162123,1728721841082,-10883.8920181,0.0005498,8]
[340162124,1728721841091,-97253.8628601,0.0005499,8]
[340162125,1728721841101,-5441.94600904,0.0005499,8]
[340162126,1728721841110,-300.348294,0.0005499,30]
[340162127,1728721841120,-2000.0,0.00055,30]
[340162128,1728721841130,-10000.0,0.00055,120]
[340162129,1728721841139,-10000.0,0.00055,120]
[340162130,1728721841148,-10000.0,0.00055,120]
[340162131,1728721841158,-10000.0,0.00055,120]
[340162132,1728721841168,-10000.0,0.00055,120]
[340162133,1728721841177,-10000.0,0.00055,120]
[340162134,1728721841186,-10000.0,0.00055,120]
[340162135,1728721841196,-10000.0,0.00055,120]
[340162136,1728721841205,-10000.0,0.00055,120]
[340162137,1728721841215,-10000.0,0.00055,120]
[340162138,1728721841224,-151.0,0.00055,120]
[340162139,1728721841233,-985.27374458,0.00055,2]
[340162140,1728721841243,-508.87,0.00055068,18]
[340162141,1728721841251,-500.0,0.00055077,120]
[340162142,1728721841261,-500.0,0.00055077,120]
[340162143,1728721841270,-500.0,0.00055077,60]
[340162144,1728721841280,-500.0,0.00055077,120]
[340162145,1728721841290,-500.0,0.00055077,120]
[340162146,1728721841299,-500.0,0.00055077,120]
[340162147,1728721841308,-541.37,0.00055077,120]
[340162148,1728721841318,-509.97654221,0.00055077,120]
[340162149,1728721841328,-500.0,0.00055077,2]
[340162150,1728721841337,-500.0,0.00055077,120]
[340162151,1728721841346,-662.40893302,0.00055077,120]
[340162152,1728721841356,-500.0,0.00055077,120]
[340162153,1728721841365,-186.28147034,0.00055077,120]
[340162154,1728721841375,-500.0,0.00055077,120]
[340162155,1728721841384,-628.06,0.00055094,120]
[340162156,1728721841394,-1000.0,0.00055094,120]
[340162157,1728721841403,-500.0,0.00055094,120]
[340162158,1728721841413,-500.0,0.00055094,120]
[340162159,1728721841423,-201.0,0.000551,7]
[340162160,1728721841432,-5441.94600904,0.00055131,8]
[340162161,1728721841442,-2720.97300452,0.00055141,8]
[340162162,1728721841453,-8162.91901356,0.00055151,8]
[340162163,1728721841463,-50990.74103779,0.00055151,51]
[340162164,1728721841476,-1210.6837266,0.00055151,51]
[340162165,1728721841485,-158.833748,0.00055151,120]
[340162166,1728721841495,-151.0,0.00055151,120]
[340162167,1728721841504,-190.504285,0.00055151,120]
[340162168,1728721841514,-2415.11055924,0.0005516,8]
[340162169,1728721841527,-3026.8354498,0.0005516,8]
[340162170,1728721841544,-151.0,0.0005517,120]
[340162171,1728721841553,-88888.0,0.0005517,120]
[340162172,1728721841563,-151.0,0.00055261,120]
[340162173,1728721841572,-153.879976,0.0005527,120]
[340162174,1728721841581,-15701.19112371,0.00055288,2]
[340162175,1728721841590,-508.87,0.00055342,18]
[340162176,1728721841600,-500.0,0.00055351,120]
[340162177,1728721841609,-500.0,0.00055351,120]
[340162178,1728721841619,-500.0,0.00055351,120]
[340162179,1728721841630,-500.0,0.00055351,120]
[340162180,1728721841639,-500.0,0.00055351,120]
[340162181,1728721841648,-541.37,0.00055351,120]
[340162182,1728721841658,-500.0,0.00055351,2]
[340162183,1728721841667,-500.0,0.00055351,120]
[340162184,1728721841677,-500.0,0.00055351,120]
[340162185,1728721841686,-500.0,0.00055351,120]
[340162186,1728721841697,-2720.97300452,0.00055358,8]
[340162187,1728721841710,-628.06,0.00055368,120]
[340162188,1728721841720,-1000.0,0.00055368,120]
[340162189,1728721841729,-190.15644581,0.00055368,120]
[340162190,1728721841739,-500.0,0.00055368,120]
[340162191,1728721841748,-248.0565494,0.00055389,120]
[340162192,1728721841757,-12103.4539419,0.00055389,120]
[340162193,1728721841767,-29490.18708166,0.0005549,120]
[340162194,1728721841776,-242.0,0.0005549,72]
[340162195,1728721841786,-1250.0,0.00055538,120]
[340162196,1728721841795,-2720.97300452,0.0005556,8]
[340162197,1728721841805,-5922.88986427,0.00055562,120]
[340162198,1728721841815,-150.0,0.00055581,120]
[340162199,1728721841824,-150.0,0.00055581,120]
[340162200,1728721841834,-151.01,0.00055581,120]
[340162201,1728721841843,-513.142,0.00055581,120]
[340162202,1728721841854,-1220.0,0.00055581,120]
[340162203,1728721841863,-300.55,0.00055581,2]
[340162204,1728721841873,-508.87,0.00055616,18]
[340162205,1728721841882,-500.0,0.00055625,120]
[340162206,1728721841892,-235.35241523,0.00055625,120]
[340162207,1728721841902,-500.0,0.00055625,60]
[340162208,1728721841911,-500.0,0.00055625,120]
[340162209,1728721841921,-500.0,0.00055625,120]
[340162210,1728721841931,-500.0,0.00055625,120]
[340162211,1728721841940,-541.37,0.00055625,120]
[340162212,1728721841953,-500.0,0.00055625,2]
[340162213,1728721841962,-500.0,0.00055625,120]
[340162214,1728721841971,-500.0,0.00055625,120]
[340162215,1728721841983,-500.0,0.00055625,120]
[340162216,1728721841993,-450.0,0.00055629,15]
[340162217,1728721842005,-628.06,0.00055642,120]
[340162218,1728721842016,-1000.0,0.00055642,120]
[340162219,1728721842027,-500.0,0.00055642,120]
[340162220,1728721842038,-484.10596244,0.000558,36]
[340162221,1728721842050,-484.64210979,0.000558,36]
[340162222,1728721842061,-508.87,0.0005589,18]
[340162223,1728721842070,-500.0,0.00055899,120]
[340162224,1728721842079,-500.0,0.00055899,120]
[340162225,1728721842089,-396.97879966,0.00055899,120]
[340162226,1728721842098,-239.33527231,0.00055899,120]
[340162227,1728721842108,-541.37,0.00055899,120]
[340162228,1728721842118,-500.0,0.00055899,2]
[340162229,1728721842128,-500.0,0.00055899,120]
[340162230,1728721842137,-500.0,0.00055899,120]
[340162231,1728721842146,-500.0,0.00055899,120]
[340162232,1728721842156,-300.0,0.000559,31]
[340162233,1728721842166,-628.06,0.00055916,120]
[340162234,1728721842175,-1000.0,0.00055916,120]
[340162235,1728721842257,-500.0,0.00055916,120]
[340162236,1728721842269,-150.0,0.00056,120]
[340162237,1728721842280,-501.3089167,0.00056152,15]
[340162238,1728721842290,-508.87,0.00056164,18]
[340162239,1728721842299,-500.0,0.00056173,120]
[340162240,1728721842310,-500.0,0.00056173,60]
[340162241,1728721842319,-648.01403182,0.00056173,120]
[340162242,1728721842329,-541.37,0.00056173,120]
[340162243,1728721842339,-500.0,0.00056173,2]
[340162244,1728721842348,-394.09854013,0.00056173,120]
[340162245,1728721842357,-500.0,0.00056173,120]
[340162246,1728721842366,-500.0,0.00056173,120]
[340162247,1728721842375,-628.06,0.0005619,120]
[340162248,1728721842384,-1051.13613546,0.0005619,120]
[340162249,1728721842393,-500.0,0.0005619,120]
[340162250,1728721842402,-4123.76,0.000562,30]
[340162251,1728721842411,-508.87,0.00056438,18]
[340162252,1728721842421,-500.0,0.00056447,120]
[340162253,1728721842432,-541.37,0.00056447,120]
[340162254,1728721842443,-500.0,0.00056447,2]
[340162255,1728721842453,-559.69712811,0.00056447,120]
[340162256,1728721842465,-500.0,0.00056447,120]
[340162257,1728721842476,-628.06,0.00056464,120]
[340162258,1728721842485,-500.0,0.00056464,120]
[340162259,1728721842497,-166.0,0.0005648,120]
[340162260,1728721842508,-165.0,0.00056484,120]
[340162261,1728721842519,-508.87,0.00056712,18]
[340162262,1728721842530,-500.0,0.00056721,120]
[340162263,1728721842541,-500.0,0.00056721,60]
[340162264,1728721842552,-541.37,0.00056721,120]
[340162265,1728721842561,-500.0,0.00056721,2]
[340162266,1728721842572,-500.0,0.00056721,120]
[340162267,1728721842582,-628.06,0.00056738,120]
[340162268,1728721842593,-500.0,0.00056738,120]
[340162269,1728721842604,-1049.0,0.000568,30]
[340162270,1728721842615,-150.822249,0.000568,2]
[340162271,1728721842626,-2720.97300452,0.00056897,9]
[340162272,1728721842636,-2500.0,0.00056907,120]
[340162273,1728721842645,-508.87,0.00056986,18]
[340162274,1728721842655,-500.0,0.00056995,120]
[340162275,1728721842665,-541.37,0.00056995,120]
[340162276,1728721842674,-500.0,0.00056995,2]
[340162277,1728721842684,-500.0,0.00056995,120]
[340162278,1728721842694,-150.0,0.00057,120]
[340162279,1728721842708,-628.06,0.00057012,120]
[340162280,1728721842718,-500.0,0.00057012,120]
[340162282,1728721842728,-12904.26137404,0.00057222,2]
[340162283,1728721842740,-508.87,0.0005726,18]
[340162284,1728721842750,-500.0,0.00057269,120]
[340162285,1728721842760,-500.0,0.00057269,60]
[340162286,1728721842769,-541.37,0.00057269,120]
[340162287,1728721842781,-500.0,0.00057269,2]
[340162288,1728721842791,-500.0,0.00057269,120]
[340162289,1728721842804,-628.06,0.00057286,120]
[340162290,1728721842815,-500.0,0.00057286,120]
[340162291,1728721842825,-162.2596,0.00057304,120]
[340162292,1728721842834,-348.977017,0.000574,31]
[340162293,1728721842844,-500.0,0.00057534,120]
[340162294,1728721842854,-395.32101899,0.00057534,120]
[340162295,1728721842864,-508.87,0.00057534,18]
[340162296,1728721842874,-500.0,0.00057543,120]
[340162297,1728721842884,-541.37,0.00057543,120]
[340162298,1728721842893,-500.0,0.00057543,2]
[340162299,1728721842902,-500.0,0.00057543,120]
[340162300,1728721842911,-628.06,0.0005756,120]
[340162301,1728721842920,-500.0,0.0005756,120]
[340162302,1728721842929,-209.099554,0.00057688,30]
[340162303,1728721842939,-171.894203,0.00057688,30]
[340162304,1728721842953,-171.262739,0.00057688,30]
[340162305,1728721842965,-825.122097,0.00057688,30]
[340162306,1728721842974,-150.0,0.000578,2]
[340162307,1728721842984,-508.87,0.00057808,18]
[340162308,1728721842994,-500.0,0.00057817,120]
[340162309,1728721843003,-500.0,0.00057817,60]
[340162310,1728721843015,-541.37,0.00057817,120]
[340162311,1728721843024,-500.0,0.00057817,120]
[340162312,1728721843034,-628.06,0.00057834,120]
[340162313,1728721843044,-500.0,0.00057834,120]
[340162314,1728721843053,-2720.97300452,0.0005789,9]
[340162315,1728721843062,-50000.0,0.000579,30]
[340162316,1728721843073,-2720.97300452,0.0005799,9]
[340162317,1728721843084,-19000.0,0.00058,120]
[340162318,1728721843095,-200.0,0.00058,120]
[340162319,1728721843106,-219.086252,0.00058077,30]
[340162320,1728721843117,-165.230435,0.00058077,30]
[340162321,1728721843129,-508.87,0.00058082,18]
[340162322,1728721843139,-500.0,0.00058091,120]
[340162323,1728721843151,-541.37,0.00058091,120]
[340162324,1728721843162,-500.0,0.00058091,120]
[340162325,1728721843172,-628.06,0.00058108,120]
[340162326,1728721843183,-500.0,0.00058108,120]
[340162327,1728721843192,-3750.0,0.00058277,120]
[340162328,1728721843201,-508.87,0.00058356,18]
[340162329,1728721843212,-500.0,0.00058365,120]
[340162330,1728721843223,-500.0,0.00058365,60]
[340162331,1728721843233,-541.37,0.00058365,120]
[340162332,1728721843245,-192.46125953,0.00058365,120]
[340162333,1728721843257,-628.06,0.00058382,120]
[340162334,1728721843270,-500.0,0.00058382,120]
[340162335,1728721843282,-209.099554,0.00058409,30]
[340162336,1728721843294,-825.122097,0.00058409,30]
[340162337,1728721843304,-150.0,0.00058581,120]
[340162338,1728721843316,-150.0,0.00058581,120]
[340162339,1728721843325,-150.0,0.00058581,120]
[340162340,1728721843335,-1220.0,0.00058581,120]
[340162341,1728721843345,-508.87,0.0005863,18]
[340162342,1728721843356,-500.0,0.00058639,120]
[340162343,1728721843368,-541.37,0.00058639,120]
[340162344,1728721843380,-628.06,0.00058656,120]
[340162345,1728721843393,-359.29,0.00058656,120]
[340162346,1728721843404,-165.0,0.00058685,120]
[340162347,1728721843417,-4123.76,0.000588,30]
[340162348,1728721843429,-219.086252,0.00058803,30]
[340162350,1728721843440,-508.87,0.00058904,18]
[340162352,1728721843450,-500.0,0.00058913,60]
[340162353,1728721843461,-541.37,0.00058913,120]
[340162355,1728721843472,-628.06,0.0005893,120]
[340162356,1728721843483,-239.140379,0.00058999,30]
[340162357,1728721843494,-200.0,0.00059,120]
[340162358,1728721843505,-209.099554,0.0005913,30]
[340162359,1728721843518,-825.122097,0.0005913,30]
[340162360,1728721843531,-2720.97300452,0.00059143,9]
[340162361,1728721843542,-313048.41712779,0.00059153,2]
[340162362,1728721843641,-0.95382378,0.00059153,2]
[340162366,1728721847298,165.0,0.00047,90]
[340162367,1728721848778,151.0,0.0004135,120]
[340162369,1728721937444,500.0,0.00041349,31]
[340162370,1728721937477,500.0,0.00041349,31]
[340162371,1728721937506,500.0,0.00041349,31]
[340162372,1728721937537,500.0,0.00041349,31]
[340162373,1728721937570,500.0,0.00041349,31]
[340162374,1728721937599,500.0,0.00041349,31]
[340162375,1728721937628,500.0,0.00041349,31]
[340162376,1728721937654,436.53730835,0.00041349,31]
[340162377,1728721937681,500.0,0.00041349,31]
[340162378,1728721937708,500.0,0.00041349,31]
[340162379,1728721937735,500.0,0.00041349,31]
[340162380,1728721937763,500.0,0.00041349,31]
[340162381,1728721937794,500.0,0.00041349,31]
[340162382,1728721937823,300.0,0.00041349,31]
[340162383,1728721937853,500.0,0.00041349,31]
[340162384,1728721937891,500.0,0.00041349,31]
[340162385,1728721937916,500.0,0.00041349,31]
[340162386,1728721937941,500.0,0.00041349,31]
[340162387,1728721937974,500.0,0.00041349,31]
[340162388,1728721938020,500.0,0.00041349,31]
[340162389,1728721938067,500.0,0.00041349,31]
[340162390,1728721938099,500.0,0.00041349,31]
[340162391,1728721938136,500.0,0.00041349,31]
[340162392,1728721938169,500.0,0.00041349,31]
[340162393,1728721938219,500.0,0.00041349,31]
[340162394,1728721938248,500.0,0.00041349,31]
[340162395,1728721938295,500.0,0.00041349,31]
[340162396,1728721939560,190.0,0.00039,120]
[340162397,1728721947899,552.41712036,0.00039,120]
[340162398,1728721951998,500.0,0.00041349,31]
[340162405,1728722748129,-1796.28893247,0.00033907,47]
[340162407,1728722834101,-3328.88704179,0.00033907,47]
[340162408,1728722834126,-400.0,0.00035489,2]
[340162409,1728722834152,-495.05950197,0.0003549,2]
[340162410,1728722834175,-171.590661,0.00035697,2]
[340162411,1728722834198,-202.07911441,0.0003637,2]
[340162412,1728722834251,-543.57289959,0.0003637,2]
[340162413,1728722834272,-400.0,0.00037054,2]
[340162414,1728722834295,-745.652014,0.00037055,2]
[340162415,1728722834319,-6844.9558522,0.000372,103]
[340162416,1728722834344,-745.652014,0.0003774,2]
[340162417,1728722834368,-423.89888198,0.0003858,2]
[340162418,1728722835173,-1607.88609392,0.0003858,2]
[340162419,1728722835199,-3145.1778581,0.00038835,2]
[340162420,1728722835224,-560.0,0.00039038,30]
[340162421,1728722835249,-560.0,0.00039645,5]
[340162422,1728722835279,-172.0,0.00041349,2]
[340162423,1728722835303,-168.52782215,0.00041349,30]
[340162424,1728722835327,-783.0,0.00042418,5]
[340162425,1728722835356,-4608.92725046,0.00042653,2]
[340162426,1728722841112,-20291.07274954,0.00042653,2]
[340162427,1728722841137,-5272.8251816,0.00042844,28]
[340162428,1728722841162,-500.0,0.00042942,31]
[340162429,1728722841188,-500.0,0.00042942,31]
[340162430,1728722841213,-200.0,0.00042942,31]
[340162431,1728722841238,-500.0,0.00042942,31]
[340162432,1728722841263,-500.0,0.00042942,31]
[340162433,1728722841288,-300.0,0.00042942,31]
[340162434,1728722841311,-500.0,0.00042942,31]
[340162435,1728722841333,-500.0,0.00042942,31]
[340162436,1728722841359,-500.0,0.00042942,31]
[340162437,1728722841381,-500.0,0.00042942,31]
[340162438,1728722841404,-270.72636759,0.00042942,31]
[340162439,1728722841426,-500.0,0.00042942,31]
[340162440,1728722841449,-500.0,0.00042942,31]
[340162441,1728722841472,-500.0,0.00042942,31]
[340162442,1728722841494,-500.0,0.00042942,31]
[340162443,1728722841517,-500.0,0.00042942,31]
[340162444,1728722841539,-500.0,0.00042942,31]
[340162445,1728722841561,-500.0,0.00042942,31]
[340162446,1728722841583,-500.0,0.00042942,31]
[340162447,1728722841605,-500.0,0.00042942,31]
[340162448,1728722841627,-500.0,0.00042942,31]
[340162449,1728722841650,-500.00009,0.00042942,31]
[340162450,1728722841672,-500.0,0.00042942,31]
[340162451,1728722841695,-500.0,0.00042942,31]
[340162452,1728722841716,-783.0,0.00042942,30]
[340162453,1728722841738,-500.0,0.0004315,10]
[340162454,1728722841758,-500.0,0.0004315,7]
[340162455,1728722841781,-218.68939,0.00043517,2]
[340162456,1728722841803,-218.68939,0.00043636,2]
[340162457,1728722841825,-218.68939,0.00043756,2]
[340162458,1728722841849,-6844.95585218,0.00043855,120]
[340162459,1728722841871,-218.68939,0.00043875,2]
[340162460,1728722841893,-218.68939,0.00043995,2]
[340162461,1728722841915,-218.68939,0.00044114,2]
[340162462,1728722841936,-218.68939,0.00044233,2]
[340162463,1728722841958,-218.68939,0.00044353,2]
[340162464,1728722841980,-218.68939,0.00044472,2]
[340162465,1728722842002,-218.68939,0.00044591,2]
[340162466,1728722842024,-218.68939,0.00044711,2]
[340162467,1728722842047,-218.68939,0.0004483,2]
[340162468,1728722842069,-218.68939,0.00044949,2]
[340162469,1728722842091,-218.68939,0.00045069,2]
[340162470,1728722842114,-163.899,0.00045093,72]
[340162471,1728722842136,-218.68939,0.00045188,2]
[340162472,1728722842158,-218.68939,0.00045307,2]
[340162473,1728722842182,-500.0,0.0004537,10]
[340162474,1728722842203,-504.2567336,0.0004537,2]
[340162475,1728722842224,-500.0,0.0004537,10]
[340162476,1728722842246,-1097.0,0.00045385,5]
[340162477,1728722842270,-218.68939,0.00045427,2]
[340162478,1728722842293,-218.68939,0.00045546,2]
[340162479,1728722842314,-160.429638,0.00045606,2]
[340162480,1728722842336,-218.68939,0.00045665,2]
[340162481,1728722842361,-218.68939,0.00045785,2]
[340162482,1728722842382,-5272.8251816,0.00046659,28]
[340162483,1728722842404,-14919.1048272,0.00046853,2]
[340162484,1728722842426,-238.75882515,0.00047141,2]
[340162485,1728722842447,-229.25,0.00047226,10]
[340162486,1728722842469,-553.0,0.00047236,30]
[340162487,1728722842490,-1536.0,0.00048559,5]
[340162488,1728722842511,-238.75882511,0.00049026,2]
[340162489,1728722842532,-437.15,0.00050306,10]
[340162490,1728722842556,-1805.33395097,0.00050316,7]
[340162491,1728722945131,-550.0,0.00045873,5]
[340162492,1728722945154,-7280.4989819,0.00045874,2]
[340162493,1728722945177,-770.0,0.00048632,5]
[340162494,1728722948523,745.69124931,0.0005,120]
[340162495,1728722950112,-10434.2087382,0.00050306,7]
[340162502,1728722974046,201.0,0.0005,7]
[340162544,1728723032537,-219.0,0.00052419,15]
[340162545,1728723032548,-291.84625769,0.0005242,120]
[340162546,1728723032560,-6553.10959449,0.0005242,120]
[340162547,1728723032572,-600.0,0.000528,2]
[340162548,1728723032582,-178.388194,0.00052877,120]
[340162549,1728723032592,-500.0,0.00053067,5]
[340162550,1728723032603,-413.7492508,0.00053151,120]
[340162551,1728723032613,-985.27374458,0.0005335,2]
[340162552,1728723032622,-407.7386457,0.00053973,120]
[340162553,1728723032632,-413.7492508,0.00053973,120]
[340162554,1728723032642,-420.0977838,0.00053973,30]
[340162555,1728723032651,-948.5930481,0.00054,2]
[340162556,1728723032661,-153.0,0.00054247,30]
[340162557,1728723032670,-3954.6188862,0.00054673,28]
[340162558,1728723032680,-179.06911884,0.00054692,2]
[340162559,1728723032690,-500.0,0.00054769,120]
[340162560,1728723032700,-333.99330682,0.00054769,120]
[340162584,1728723038548,-2791.16292535,0.0005468,120]
[340162585,1728723038818,-199.58765916,0.0005468,120]
[340162586,1728723038832,-20234.58465801,0.0005468,120]
[340162587,1728723038844,-65662.66475748,0.0005468,120]
[340162588,1728723038854,-166.00670318,0.00054769,120]
[340162589,1728723038864,-36519.7305837,0.0005477,8]
[340162590,1728723038874,-364.3,0.0005478,10]
[340162591,1728723038884,-303.58,0.0005478,10]
[340162592,1728723038894,-154.017889,0.0005478,120]
[340162593,1728723038904,-151.0,0.0005478,120]
[340162594,1728723038914,-10434.2087382,0.0005478,8]
[340162595,1728723038925,-5217.1043691,0.00054784,8]
[340162596,1728723038935,-8420.59148381,0.00054792,120]
[340162597,1728723039535,-4908.46573029,0.00054792,120]
[340162598,1728723039545,-159.424956,0.00054792,120]
[340162599,1728723039554,-151.0,0.00054792,120]
[340162600,1728723039565,-500.0,0.00054794,120]
[340162601,1728723039575,-500.0,0.00054794,120]
[340162602,1728723039585,-500.0,0.00054794,120]
[340162603,1728723039596,-500.0,0.00054794,120]
[340162604,1728723039606,-509.97654221,0.00054794,120]
[340162605,1728723039615,-500.0,0.00054794,2]
[340162606,1728723039625,-436.92555178,0.00054794,120]
[340162607,1728723039638,-63.07444822,0.00054794,120]
[340162608,1728723039647,-1000.0,0.00054794,120]
[340162609,1728723039656,-500.0,0.00054794,120]
[340162610,1728723039665,-500.0,0.00054794,120]
[340162611,1728723039675,-186.28147034,0.00054794,120]
[340162612,1728723039684,-500.0,0.00054794,120]
[340162613,1728723039695,-500.0,0.00054794,120]
[340162614,1728723039705,-527.15395536,0.00054794,120]
[340162615,1728723039715,-500.0,0.00054794,120]
[340162616,1728723039724,-500.0,0.00054794,120]
[340162617,1728723039734,-500.0,0.00054794,120]
[340162618,1728723039743,-1000.0,0.00054794,120]
[340162619,1728723039753,-500.0,0.00054794,120]
[340162620,1728723039763,-500.0,0.00054794,120]
[340162621,1728723039772,-500.0,0.00054794,120]
[340162622,1728723039782,-500.0,0.00054794,60]
[340162623,1728723039791,-300.0,0.00054794,120]
[340162624,1728723039801,-500.0,0.00054794,18]
[340162625,1728723039810,-500.0,0.00054794,120]
[340162626,1728723039819,-153.0,0.00054795,120]
[340162627,1728723039828,-153.0,0.00054795,120]
[340162628,1728723039837,-306.0,0.00054795,120]
[340162629,1728723039847,-215.6503119,0.00054795,120]
[340162630,1728723039857,-153.9001161,0.00054795,120]
[340162631,1728723039866,-413.7492508,0.00054795,120]
[340162632,1728723039875,-827.4985016,0.00054795,120]
[340162633,1728723039885,-751.1101057,0.00054795,120]
[340162634,1728723039894,-827.4985017,0.00054795,120]
[340162635,1728723039904,-413.7492508,0.00054795,120]
[340162636,1728723039914,-185.35221641,0.0005482,120]
[340162637,1728723039923,-1808.1060449,0.00054851,8]
[340162645,1728723040417,-2382.43036614,0.00054851,8]
[340162646,1728723040429,-11460.77669626,0.00054851,8]
[340162647,1728723040438,-1000.0,0.00055,3]
[340162648,1728723040448,-500.0,0.00055068,120]
[340162649,1728723040458,-500.0,0.00055068,120]
[340162650,1728723040467,-1000.0,0.00055068,120]
[340162651,1728723040476,-500.0,0.00055068,120]
[340162652,1728723040486,-500.0,0.00055068,120]
[340162653,1728723040500,-500.0,0.00055068,120]
[340162654,1728723040509,-1000.0,0.00055068,120]
[340162655,1728723040519,-500.0,0.00055068,120]
[340162656,1728723040529,-500.0,0.00055068,120]
[340162657,1728723040539,-500.0,0.00055068,120]
[340162658,1728723040611,-500.0,0.00055068,18]
[340162659,1728723040635,-500.0,0.00055342,120]
[340162660,1728723040645,-500.0,0.00055342,120]
[340162661,1728723040655,-1000.0,0.00055342,120]
[340162662,1728723040667,-500.0,0.00055342,120]
[340162663,1728723040678,-500.0,0.00055342,120]
[340162664,1728723040689,-500.0,0.00055342,120]
[340162665,1728723040699,-500.0,0.00055342,120]
[340162666,1728723040709,-500.0,0.00055342,60]
[340162667,1728723040718,-500.0,0.00055342,18]
[340162668,1728723040727,-249.169591,0.00055342,2]
[340162669,1728723040737,-150.0,0.00055387,120]
[340162670,1728723040746,-526.0,0.00055387,120]
[340162671,1728723040756,-1220.0,0.00055387,120]
[340162672,1728723040765,-504.23492492,0.00055475,15]
[340162673,1728723040774,-5217.1043691,0.00055606,8]
[340162674,1728723040784,-499.782398,0.00055616,120]
[340162675,1728723040793,-500.0,0.00055616,120]
[340162676,1728723040803,-530.32938504,0.00055616,120]
[340162677,1728723040812,-500.0,0.00055616,120]
[340162678,1728723040822,-500.0,0.00055616,120]
[340162679,1728723040831,-500.0,0.00055616,120]
[340162680,1728723040841,-500.0,0.00055616,120]
[340162681,1728723040850,-500.0,0.00055616,18]
[340162682,1728723040860,-5217.1043691,0.0005587,9]
[340162683,1728723040869,-500.0,0.0005589,120]
[340162684,1728723040878,-500.0,0.0005589,120]
[340162685,1728723040887,-500.0,0.0005589,120]
[340162686,1728723040896,-500.0,0.0005589,120]
[340162687,1728723040906,-500.0,0.0005589,120]
[340162688,1728723040915,-500.0,0.0005589,60]
[340162689,1728723040925,-500.0,0.0005589,18]
[340162690,1728723040936,-1000.0,0.00056,4]
[340162691,1728723040946,-5217.1043691,0.00056051,9]
[340162692,1728723040958,-50990.7456,0.00056061,61]
[340162693,1728723040969,-179.06911883,0.00056146,2]
[340162694,1728723040979,-500.0,0.00056164,120]
[340162695,1728723040988,-500.0,0.00056164,120]
[340162696,1728723040998,-500.0,0.00056164,120]
[340162697,1728723041007,-500.0,0.00056164,120]
[340162698,1728723041018,-500.0,0.00056164,120]
[340162699,1728723041027,-500.0,0.00056164,18]
[340162700,1728723041037,-500.0,0.00056438,120]
[340162701,1728723041049,-500.0,0.00056438,120]
[340162702,1728723041058,-500.0,0.00056438,120]
[340162703,1728723041068,-500.0,0.00056438,120]
[340162704,1728723041077,-500.0,0.00056438,120]
[340162705,1728723041086,-500.0,0.00056438,60]
[340162706,1728723041096,-500.0,0.00056438,18]